bitfinex-derivatives/quotes_ETHF0:USTF0_20250505
["timestamp","ask_amount","ask_price","bid_price","bid_amount"]
[1746465776958,2.82832,1811.1,1811.0,45.81656021]
[1746465777758,2.82832,1811.1,1811.0,44.10016021]
[1746465780656,2.82832,1811.1,1811.0,43.27556021]
[1746465781159,6.56032,1811.1,1811.0,43.27556021]
[1746465783270,2.82832,1811.1,1811.0,43.27556021]
[1746465784262,1.7238,1811.1,1811.0,44.88996021]
[1746465784467,0.7879,1811.2,1811.1,1.10446]
[1746465784760,9.1226232,1811.3,1811.2,1.1044]
[1746465784958,9.1226232,1811.3,1811.2,2.47549021]
[1746465785159,2.5544,1811.4,1811.3,1.10434]
[1746465785356,3.65868,1811.4,1811.3,2.47543021]
[1746465785557,2.5544,1811.4,1811.3,2.71874]
[1746465785759,1.7049,1811.4,1811.3,4.90643021]
[1746465786068,2.80918,1811.4,1811.3,4.90643021]
[1746465786268,6.54118,1811.4,1811.3,4.90643021]
[1746465786972,6.54118,1811.4,1811.3,2.47543021]
[1746465787165,1.10434,1811.3,1811.2,44.349]
[1746465787361,2.83874,1811.3,1811.2,44.349]
[1746465787562,2.83874,1811.3,1811.2,45.4534]
[1746465788271,6.57074,1811.3,1811.2,44.349]
[1746465788770,6.57074,1811.3,1811.2,41.9044]
[1746465789271,9.77854,1811.3,1811.2,40.8]
[1746465789470,14.77854,1811.3,1811.2,40.8]
[1746465789768,9.77854,1811.3,1811.2,40.8]
[1746465791870,1.10446,1811.1,1811.0,1.10447]
[1746465792067,4.83646,1811.1,1811.0,1.10447]
[1746465792373,4.83646,1811.1,1811.0,41.90447]
[1746465792572,6.55626,1811.1,1811.0,41.90447]
[1746465796178,6.55626,1811.1,1811.0,40.8]
[1746465796377,9.76406,1811.1,1811.0,40.8]
[1746465796780,2.76147,1810.9,1810.6,1.10472]
[1746465797071,1.10476,1810.7,1810.6,2.47580021]
[1746465797273,1.10476,1810.7,1810.6,42.17109021]
[1746465797579,1.10483,1810.5,1810.4,10.06947983]
[1746465797977,1.10483,1810.5,1810.4,52.24057004]
[1746465798178,2.83801,1810.6,1810.5,1.10483]
[1746465798480,1.10477,1810.7,1810.6,1.10472]
[1746465798777,1.10477,1810.7,1810.6,2.47581021]
[1746465798778,2.83797,1810.7,1810.6,2.47581021]
[1746465798981,1.10477,1810.6,1810.5,2.81297]
[1746465799179,2.83797,1810.6,1810.5,2.81297]
[1746465799478,2.83797,1810.6,1810.5,2.47586021]
[1746465800076,6.56997,1810.6,1810.5,1.37109021]
[1746465800278,1.10483,1810.5,1810.4,7.31783983]
[1746465800576,4.44783,1810.5,1810.4,7.31783983]
[1746465800776,4.44783,1810.5,1810.4,8.42272983]
[1746465801181,8.17983,1810.5,1810.4,7.31783983]
[1746465801776,1.10489,1810.4,1810.3,1.8858]
[1746465802079,6.56989,1810.4,1810.3,1.8858]
[1746465802279,6.56989,1810.4,1810.3,3.25689021]
[1746465802477,6.56989,1810.4,1810.3,4.94689021]
[1746465803283,2.83789,1810.4,1810.3,4.94689021]
[1746465810089,2.83789,1810.4,1810.3,1.1049]
[1746465810390,1.10489,1810.4,1810.3,3.31979021]
[1746465810690,1.10489,1810.4,1810.3,4.92309021]
[1746465812385,4.0247,1810.7,1810.4,1.10489]
[1746465812593,5.12949,1810.7,1810.6,1.10477]
[1746465813188,5.12949,1810.7,1810.6,41.90477]
[1746465813489,1.92169,1810.7,1810.6,41.90477]
[1746465813689,3.50699,1810.7,1810.6,41.90477]
[1746465814287,3.50699,1810.7,1810.6,40.8]
[1746465815085,3.50699,1810.7,1810.6,41.90477]
[1746465815493,3.50699,1810.7,1810.6,1.10477]
[1746465816184,3.50699,1810.7,1810.5,42.5095]
[1746465816185,1.10477,1810.6,1810.5,43.61428]
[1746465816386,2.81297,1810.6,1810.5,44.98537021]
[1746465818692,6.02077,1810.6,1810.5,42.17109021]
[1746465819295,9.75277,1810.6,1810.5,42.17109021]
[1746465819594,6.54497,1810.6,1810.5,42.17109021]
[1746465819895,6.54497,1810.6,1810.5,43.27592021]
[1746465820192,6.54497,1810.6,1810.5,42.17109021]
[1746465821793,6.54497,1810.6,1810.5,43.27592021]
[1746465822287,4.83677,1810.6,1810.5,45.78432021]
[1746465823196,1.10477,1810.6,1810.5,42.17109021]
[1746465823397,2.68017,1810.6,1810.5,42.17109021]
[1746465824497,2.68017,1810.6,1810.5,43.27592021]
[1746465827296,1.10476,1810.7,1810.6,1.10471]
[1746465827596,4.31248,1810.8,1810.7,1.10471]
[1746465827797,4.31248,1810.8,1810.7,2.47580021]
[1746465828300,4.31248,1810.8,1810.7,4.16040021]
[1746465830903,1.10471,1810.7,1810.6,1.90882]
[1746465831102,1.95591,1810.7,1810.6,1.90882]
[1746465831402,1.95591,1810.7,1810.6,2.47581021]
[1746465832303,1.95591,1810.7,1810.6,4.08281021]
[1746465834303,1.1047,1810.8,1810.7,1.10464]
[1746465834502,1.1047,1810.8,1810.7,2.47573021]
[1746465835196,1.1047,1810.8,1810.7,6.20773021]
[1746465836304,1.1047,1810.8,1810.7,5.10309021]
[1746465836604,1.1047,1810.8,1810.7,3.732]
[1746465837302,1.10471,1810.7,1810.6,1.10472]
[1746465837605,1.91891,1810.7,1810.6,1.10472]
[1746465837805,1.91891,1810.7,1810.6,2.47581021]
[1746465838004,1.10469,1810.8,1810.7,1.10464]
[1746465838304,1.10469,1810.8,1810.7,3.31713021]
[1746465839103,1.10469,1810.8,1810.7,7.04913021]
[1746465839307,3.60212,1810.9,1810.8,1.10464]
[1746465839505,3.60212,1810.9,1810.8,4.12463021]
[1746465840099,3.60212,1810.9,1810.8,7.85663021]
[1746465841206,3.60212,1810.9,1810.8,4.12463021]
[1746465842204,3.60212,1810.9,1810.8,7.85663021]
[1746465843009,3.2078,1811.1,1810.9,1.10452]
[1746465843203,4.3123,1811.1,1811.0,3.26881021]
[1746465843401,5.9313,1811.1,1811.0,3.26881021]
[1746465843603,6.7168,1811.1,1811.0,3.26881021]
[1746465844506,4.8268,1811.1,1811.0,4.13171021]
[1746465844807,5.93126,1811.1,1811.0,4.13171021]
[1746465845004,3.2078,1811.1,1811.0,4.13171021]
[1746465845205,4.31226,1811.1,1811.0,4.13171021]
[1746465845401,3.2078,1811.1,1811.0,4.13171021]
[1746465845606,4.31226,1811.1,1811.0,4.13171021]
[1746465845805,3.2078,1811.1,1811.0,4.13171021]
[1746465846408,5.95906,1811.1,1811.0,4.13171021]
[1746465846602,2.75126,1811.1,1811.0,4.13171021]
[1746465848908,1.6468,1811.1,1811.0,4.13171021]
[1746465849405,2.75126,1811.1,1811.0,4.13171021]
[1746465851309,1.6468,1811.1,1811.0,4.13171021]
[1746465851504,2.75126,1811.1,1811.0,4.13171021]
[1746465851700,13.4348132,1811.3,1811.2,1.1044]
[1746465851904,15.1101132,1811.3,1811.2,2.47549021]
[1746465852208,15.1101132,1811.3,1811.2,1.1044]
[1746465852605,11.9023132,1811.3,1811.2,1.1044]
[1746465853609,2.77969,1811.3,1811.2,1.1044]
[1746465855307,1.6753,1811.3,1811.2,2.47549021]
[1746465855609,1.6753,1811.3,1811.2,4.10669021]
[1746465856308,1.6753,1811.3,1811.2,7.83869021]
[1746465857210,1.6753,1811.3,1811.2,4.10669021]
[1746465857808,2.77964,1811.3,1811.2,4.10669021]
[1746465858009,1.6753,1811.3,1811.2,7.31449021]
[1746465858205,1.6753,1811.3,1811.2,11.04649021]
[1746465858405,10.2269032,1811.4,1811.3,1.10434]
[1746465858607,11.7893032,1811.4,1811.3,5.79983021]
[1746465859012,10.6850232,1811.4,1811.3,5.79983021]
[1746465859211,10.6850232,1811.4,1811.3,9.53183021]
[1746465859414,1.5624,1811.4,1811.3,9.53183021]
[1746465861812,2.66668,1811.4,1811.3,9.53183021]
[1746465863610,1.5624,1811.4,1811.3,9.53183021]
[1746465864309,1.90967,1811.5,1811.3,9.53183021]
[1746465864512,9.1226232,1811.9,1811.4,12.47892021]
[1746465864713,9.1226232,1811.9,1811.8,2.47513021]
[1746465864914,11.8422732,1812.0,1811.9,1.10397]
[1746465865311,9.1226232,1812.0,1811.9,4.06946021]
[1746465866213,9.1226232,1812.0,1811.9,7.80146021]
[1746465868210,10.2265332,1812.0,1811.9,6.69749021]
[1746465868515,3.5539,1812.1,1812.0,1.10391]
[1746465868710,3.5539,1812.1,1812.0,2.47500021]
[1746465868912,2.45,1812.1,1812.0,2.47500021]
[1746465869415,3.55385,1812.1,1812.0,2.47500021]
[1746465870013,3.55385,1812.1,1812.0,1.10391]
[1746465874217,2.45,1812.1,1812.0,1.10391]
[1746465874409,1.6157,1812.1,1812.0,2.47500021]
[1746465875217,1.6157,1812.1,1812.0,6.20700021]
[1746465875419,2.71955,1812.1,1812.0,6.20700021]
[1746465876017,2.71955,1812.1,1812.0,3.732]
[1746465876312,1.10391,1812.0,1811.9,1.10394]
[1746465876509,2.66891,1812.0,1811.9,2.47503021]
[1746465878216,2.66891,1812.0,1811.9,6.20703021]
[1746465878920,1.565,1812.0,1811.9,6.20703021]
[1746465879314,1.565,1812.0,1811.9,2.47503021]
[1746465879514,2.66891,1812.0,1811.9,2.47503021]
[1746465880321,2.66891,1812.0,1811.9,6.20703021]
[1746465881118,2.66891,1812.0,1811.9,2.47503021]
[1746465882517,1.565,1812.0,1811.9,2.47503021]
[1746465882721,1.565,1812.0,1811.9,4.11163021]
[1746465883217,1.10387,1812.1,1812.0,1.10391]
[1746465883420,1.10387,1812.1,1812.0,5.74180021]
[1746465883722,1.10387,1812.1,1812.0,4.92640021]
[1746465884117,1.10387,1812.1,1812.0,8.65840021]
[1746465884620,1.10387,1812.1,1812.0,7.02180021]
[1746465885326,1.10387,1812.1,1812.0,6.20700021]
[1746465886127,1.10387,1812.1,1812.0,2.47500021]
[1746465886325,1.10387,1812.1,1812.0,1.10391]
[1746465887127,2.82044,1812.2,1812.1,1.10385]
[1746465887427,2.82044,1812.2,1812.1,2.47494021]
[1746465891425,1.10384,1812.2,1812.1,2.47494021]
[1746465891629,1.10384,1812.2,1812.1,5.03854021]
[1746465892235,4.31155,1812.3,1812.2,1.10379]
[1746465892438,1.92143,1812.4,1812.3,1.10373]
[1746465892638,2.69483,1812.3,1812.2,3.66798]
[1746465893140,2.69483,1812.3,1812.2,5.03907021]
[1746465894033,2.69483,1812.3,1812.2,3.93529021]
[1746465894235,2.69483,1812.3,1812.2,3.33558021]
[1746465894537,1.10384,1812.2,1812.0,1.6419]
[1746465894732,2.68664,1812.2,1812.0,3.269]
[1746465894938,2.68664,1812.2,1812.1,1.37109021]
[1746465895142,1.5828,1812.2,1812.1,2.47488021]
[1746465895431,1.5828,1812.2,1812.1,4.11678021]
[1746465897037,2.68659,1812.2,1812.1,4.11678021]
[1746465897939,1.5828,1812.2,1812.1,4.11678021]
[1746465898142,1.92141,1812.4,1812.3,1.09707785]
[1746465898440,3.55941,1812.4,1812.3,2.46816806]
[1746465900036,3.55941,1812.4,1812.3,4.09076806]
[1746465900739,3.55941,1812.4,1812.3,3.26286806]
[1746465900932,3.55941,1812.4,1812.3,2.47482021]
[1746465901929,2.4557,1812.4,1812.3,2.47482021]
[1746465902131,7.29137,1812.4,1812.3,3.30272021]
[1746465904337,7.29137,1812.4,1812.3,1.10373]
[1746465906140,6.1877,1812.4,1812.3,1.10373]
[1746465906441,6.1877,1812.4,1812.3,2.47482021]
[1746465906633,5.37,1812.4,1812.3,4.91142021]
[1746465909045,6.47367,1812.4,1812.3,4.91142021]
[1746465909344,5.37,1812.4,1812.3,4.91142021]
[1746465910147,3.732,1812.4,1812.3,4.91142021]
[1746465910444,0.825,1812.6,1812.4,1.10367]
[1746465910445,2.68851,1812.5,1812.4,1.10367]
[1746465910645,2.68851,1812.5,1812.4,2.67057]
[1746465910944,2.68851,1812.5,1812.4,4.04166021]
[1746465911144,6.42051,1812.5,1812.4,4.04166021]
[1746465914142,1.10379,1812.2,1812.1,2.663]
[1746465914538,1.10379,1812.2,1812.1,5.13794021]
[1746465914740,2.82469,1812.2,1812.1,5.13794021]
[1746465915147,5.4529,1812.2,1812.1,5.13794021]
[1746465915841,3.732,1812.2,1812.1,8.67794021]
[1746465916145,3.732,1812.2,1812.1,13.55764021]
[1746465917742,1.58667,1812.2,1812.1,18.55764021]
[1746465917947,9.1226232,1812.6,1812.5,1.10361]
[1746465918147,9.1226232,1812.6,1812.5,2.47470021]
[1746465918539,9.1226232,1812.6,1812.5,4.97790021]
[1746465919050,9.1226232,1812.6,1812.5,45.77790021]
[1746465920158,12.8546232,1812.6,1812.5,45.77790021]
[1746465920445,12.8546232,1812.6,1812.5,53.44090021]
[1746465920646,10.0580032,1812.6,1812.5,53.44090021]
[1746465920846,8.6017632,1812.6,1812.5,53.44090021]
[1746465921040,6.2358032,1812.6,1812.5,53.44090021]
[1746465921246,2.5038032,1812.6,1812.5,53.44090021]
[1746465921446,3.2e-06,1812.6,1812.5,53.44090021]
[1746465922056,10.96808741,1813.0,1812.9,1.10337]
[1746465922253,9.21087536,1813.0,1812.9,6.01446021]
[1746465922450,9.21087536,1813.0,1812.9,9.22226021]
[1746465922653,9.21087536,1813.0,1812.9,51.72296021]
[1746465923154,12.94287536,1813.0,1812.9,51.72296021]
[1746465923854,14.60447536,1813.0,1812.9,51.72296021]
[1746465925451,15.70777536,1813.0,1812.9,48.18296021]
[1746465925648,15.70777536,1813.0,1812.9,42.17109021]
[1746465925949,21.50707536,1813.0,1812.9,40.8]
[1746465926349,12.2962,1813.0,1812.9,40.8]
[1746465926554,1.10337,1812.9,1812.8,2.663]
[1746465926754,2.71497,1812.9,1812.8,2.663]
[1746465926957,7.71497,1812.9,1812.8,3.76643]
[1746465927145,11.44697,1812.9,1812.8,44.56643]
[1746465927344,6.44697,1812.9,1812.8,41.90343]
[1746465927551,5.3436,1812.9,1812.8,41.90343]
[1746465927752,6.44697,1812.9,1812.8,41.90343]
[1746465935063,5.3436,1812.9,1812.8,43.27452021]
[1746465935364,3.732,1812.9,1812.8,44.07592021]
[1746465935661,3.732,1812.9,1812.8,46.46612021]
[1746465936360,5.3412,1812.9,1812.8,50.00412021]
[1746465936762,6.44457,1812.9,1812.8,50.00412021]
[1746465937158,6.44457,1812.9,1812.8,49.18052021]
[1746465937355,6.44457,1812.9,1812.8,47.61392021]
[1746465937660,6.44457,1812.9,1812.8,44.338]
[1746465937859,6.44457,1812.9,1812.8,45.44143]
[1746465942663,6.44457,1812.9,1812.8,46.81252021]
[1746465944969,6.44457,1812.9,1812.8,45.44143]
[1746465945766,7.27237,1812.9,1812.8,45.44143]
[1746465946858,7.27237,1812.9,1812.8,40.8]
[1746465947669,7.27237,1812.9,1812.8,41.90343]
[1746465948672,7.27237,1812.9,1812.8,40.8]
[1746465949973,2.7586,1812.8,1812.5,1.10358]
[1746465950275,1.10361,1812.5,1812.4,5.48266]
[1746465950572,1.10361,1812.5,1812.4,41.641]
[1746465950773,1.10361,1812.5,1812.4,43.01209021]
[1746465950974,1.10361,1812.5,1812.4,44.11576021]
[1746465951176,6.2498,1812.5,1812.4,44.11576021]
[1746465951473,6.2498,1812.5,1812.4,45.81476021]
[1746465951674,5.3939,1812.5,1812.4,45.81476021]
[1746465952169,6.49751,1812.5,1812.4,45.81476021]
[1746465952872,5.3939,1812.5,1812.4,45.81476021]
[1746465954170,6.49751,1812.5,1812.4,45.81476021]
[1746465956366,6.49751,1812.5,1812.4,44.11576021]
[1746465957174,6.49751,1812.5,1812.4,45.79266021]
[1746465958077,3.732,1812.5,1812.4,45.79266021]
[1746465958377,4.83561,1812.5,1812.4,45.79266021]
[1746465958580,3.732,1812.5,1812.4,45.79266021]
[1746465958873,4.83561,1812.5,1812.4,45.79266021]
[1746465960573,3.732,1812.5,1812.4,45.79266021]
[1746465960780,4.83561,1812.5,1812.4,45.79266021]
[1746465962578,1.10379,1812.2,1812.1,14.90143517]
[1746465962878,4.31159,1812.2,1812.1,0.02129]
[1746465963183,1.10397,1811.9,1811.8,40.8]
[1746465963379,1.10397,1811.9,1811.8,43.61474]
[1746465963676,2.71826,1812.0,1811.9,1.10397]
[1746465963879,1.6143,1812.0,1811.9,2.47506021]
[1746465964181,5.3463,1812.0,1811.9,2.47506021]
[1746465964379,6.45021,1812.0,1811.9,2.47506021]
[1746465965183,5.3463,1812.0,1811.9,2.47506021]
[1746465965679,6.45021,1812.0,1811.9,2.47506021]
[1746465966068,5.3463,1812.0,1811.9,2.47506021]
[1746465966673,6.45021,1812.0,1811.9,2.47506021]
[1746465967183,5.3463,1812.0,1811.9,2.47506021]
[1746465967570,5.3463,1812.0,1811.9,4.12276021]
[1746465967776,5.3463,1812.0,1811.9,7.33056021]
[1746465968382,6.45021,1812.0,1811.9,7.33056021]
[1746465968581,5.3463,1812.0,1811.9,7.33056021]
[1746465968984,3.732,1812.0,1811.9,7.33056021]
[1746465969785,4.83591,1812.0,1811.9,7.33056021]
[1746465969982,3.732,1812.0,1811.9,48.13056021]
[1746465970284,4.83591,1812.0,1811.9,48.13056021]
[1746465971085,3.732,1812.0,1811.9,48.13056021]
[1746465971783,5.3081,1812.0,1811.9,48.13056021]
[1746465972288,6.41201,1812.0,1811.9,48.13056021]
[1746465972687,6.41201,1812.0,1811.9,46.48286021]
[1746465972983,6.41201,1812.0,1811.9,40.8]
[1746465973288,6.41201,1812.0,1811.9,41.90397]
[1746465973684,8.04341,1812.0,1811.9,41.90397]
[1746465974383,8.04341,1812.0,1811.9,40.8]
[1746465975481,8.04341,1812.0,1811.9,41.90397]
[1746465978286,8.04341,1812.0,1811.9,40.8]
[1746465978895,1.1041,1811.7,1811.6,1.12423]
[1746465979095,1.1041,1811.7,1811.6,2.49532021]
[1746465979400,5.3634,1812.0,1811.7,1.1041]
[1746465979401,2.66866,1811.8,1811.7,1.1041]
[1746465979599,2.66866,1811.8,1811.7,2.47519021]
[1746465979899,2.66866,1811.8,1811.7,1.1041]
[1746465980199,6.40066,1811.8,1811.7,1.1041]
[1746465980400,1.1041,1811.7,1811.6,40.8]
[1746465980597,4.301,1811.7,1811.6,40.8]
[1746465981198,8.033,1811.7,1811.6,40.8]
[1746465981403,8.033,1811.7,1811.6,41.90416]
[1746465985508,8.033,1811.7,1811.6,43.27525021]
[1746465988413,8.033,1811.7,1811.6,42.17109021]
[1746465988613,8.033,1811.7,1811.6,43.27525021]
[1746465993507,4.8361,1811.7,1811.6,43.27525021]
[1746465993714,4.8361,1811.7,1811.6,45.79125021]
[1746465994215,4.8361,1811.7,1811.6,44.99205021]
[1746465994417,5.6426,1811.7,1811.6,44.99205021]
[1746465994715,5.6426,1811.7,1811.6,43.88789021]
[1746465994905,5.6426,1811.7,1811.6,42.17109021]
[1746465995512,6.4482,1811.7,1811.6,42.17109021]
[1746465995816,8.0215,1811.7,1811.6,42.17109021]
[1746465996517,8.0215,1811.7,1811.6,40.8]
[1746465999617,2.7604,1811.6,1811.3,1.88723]
[1746465999813,1.10422,1811.5,1811.4,1.37109021]
[1746466000119,2.75792,1811.5,1811.4,42.17109021]
[1746466001225,6.48992,1811.5,1811.4,42.17109021]
[1746466003021,7.32102,1811.5,1811.4,42.17109021]
[1746466004819,7.32102,1811.5,1811.4,40.8]
[1746466005317,6.48992,1811.5,1811.4,40.8]
[1746466005524,6.48992,1811.5,1811.4,44.40118]
[1746466006325,6.48992,1811.5,1811.4,43.2969]
[1746466006528,6.48992,1811.5,1811.4,44.66799021]
[1746466009227,6.48992,1811.5,1811.4,45.77227021]
[1746466009624,6.48992,1811.5,1811.4,44.66799021]
[1746466010926,3.732,1811.5,1811.4,45.77227021]
[1746466011124,4.83622,1811.5,1811.4,45.77227021]
[1746466013233,1.10422,1811.5,1811.4,45.77227021]
[1746466014625,1.1042,1811.6,1811.5,1.10416]
[1746466014824,1.1042,1811.6,1811.5,2.68666]
[1746466015131,4.8362,1811.6,1811.5,4.05775021]
[1746466015624,3.732,1811.6,1811.5,48.06555021]
[1746466016223,1.10408,1811.8,1811.7,1.1041]
[1746466016626,2.74632,1811.9,1811.8,1.10404]
[1746466016824,1.6423,1811.9,1811.8,2.47513021]
[1746466017027,5.95867,1812.0,1811.9,1.10397]
[1746466017228,7.60097,1812.0,1811.9,4.04656021]
[1746466017728,4.39317,1812.0,1811.9,4.04656021]
[1746466018235,8.12517,1812.0,1811.9,4.04656021]
[1746466019334,7.32297,1812.0,1811.9,4.04656021]
[1746466019534,5.3743,1812.0,1811.9,4.04656021]
[1746466020434,6.47821,1812.0,1811.9,4.04656021]
[1746466020734,5.3743,1812.0,1811.9,4.04656021]
[1746466021231,6.47821,1812.0,1811.9,4.04656021]
[1746466022336,5.3743,1812.0,1811.9,4.04656021]
[1746466022834,6.47821,1812.0,1811.9,4.04656021]
[1746466025237,2.74621,1812.0,1811.9,7.77856021]
[1746466025932,1.6423,1812.0,1811.9,7.77856021]
[1746466026340,1.6423,1812.0,1811.9,8.63666021]
[1746466026933,3.4354,1812.2,1812.1,1.10385]
[1746466027133,3.2078,1812.5,1812.3,1.10367]
[1746466027331,3.2078,1812.5,1812.3,2.47476021]
[1746466027332,1.7182,1812.4,1812.3,2.47476021]
[1746466027532,1.7182,1812.4,1812.3,44.83956021]
[1746466028138,12.86134741,1812.6,1812.5,1.10361]
[1746466028336,14.45424741,1812.6,1812.5,2.47470021]
[1746466028726,3.48616,1812.6,1812.5,2.47470021]
[1746466029143,3.48616,1812.6,1812.5,6.20670021]
[1746466029439,2.3826,1812.6,1812.5,6.20670021]
[1746466029640,3.48615,1812.6,1812.5,6.20670021]
[1746466029843,2.3826,1812.6,1812.5,6.20670021]
[1746466030244,3.48615,1812.6,1812.5,6.20670021]
[1746466031041,3.48615,1812.6,1812.5,7.02150021]
[1746466031244,1.5929,1812.6,1812.5,10.22930021]
[1746466031445,1.5929,1812.6,1812.5,11.07610021]
[1746466031635,2.69645,1812.6,1812.5,11.07610021]
[1746466032143,1.5929,1812.6,1812.5,11.07610021]
[1746466032643,8.7242,1813.1,1812.5,13.50949021]
[1746466032841,8.7242,1813.1,1812.8,2.47450021]
[1746466032842,1.7298,1812.9,1812.8,2.47450021]
[1746466033143,2.83317,1812.9,1812.8,6.20650021]
[1746466033337,2.83317,1812.9,1812.8,45.63541]
[1746466034345,1.7298,1812.9,1812.8,47.00650021]
[1746466034535,1.7298,1812.9,1812.8,50.21850021]
[1746466035039,5.10339,1813.1,1813.0,1.1033]
[1746466035246,5.7244,1813.1,1813.0,1.37109021]
[1746466035445,1.1033,1813.0,1812.9,2.68845]
[1746466035647,2.8276,1813.0,1812.9,2.68845]
[1746466035947,2.8276,1813.0,1812.9,4.05954021]
[1746466036243,2.8276,1813.0,1812.9,7.79154021]
[1746466038941,2.8276,1813.0,1812.9,10.99934021]
[1746466040748,2.8276,1813.0,1812.9,9.41424021]
[1746466041046,1.7243,1813.0,1812.9,9.41424021]
[1746466041246,1.7243,1813.0,1812.9,10.98244021]
[1746466041644,2.8276,1813.0,1812.9,10.98244021]
[1746466042144,1.7243,1813.0,1812.9,10.98244021]
[1746466042345,2.8276,1813.0,1812.9,10.98244021]
[1746466045450,1.7243,1813.0,1812.9,10.98244021]
[1746466045748,2.8276,1813.0,1812.9,10.98244021]
[1746466048056,2.8276,1813.0,1812.9,7.77464021]
[1746466048253,2.8276,1813.0,1812.9,6.20644021]
[1746466048553,2.8276,1813.0,1812.9,5.10309021]
[1746466048747,2.8276,1813.0,1812.9,6.20646021]
[1746466050153,1.7243,1813.0,1812.9,6.20646021]
[1746466050354,1.7243,1813.0,1812.9,7.81286021]
[1746466050548,1.7243,1813.0,1812.9,11.02066021]
[1746466052453,2.8276,1813.0,1812.9,11.02066021]
[1746466052654,1.7243,1813.0,1812.9,11.02066021]
[1746466053153,1.7243,1813.0,1812.9,7.81286021]
[1746466053753,2.8276,1813.0,1812.9,7.81286021]
[1746466053954,1.1033,1813.1,1813.0,1.10324]
[1746466054154,2.7834,1813.1,1813.0,2.47433021]
[1746466054356,2.7834,1813.1,1813.0,4.06173021]
[1746466055055,2.7834,1813.1,1813.0,2.47433021]
[1746466055255,1.6801,1813.1,1813.0,6.20633021]
[1746466055857,2.78334,1813.1,1813.0,6.20633021]
[1746466056060,1.665,1813.2,1813.1,1.10324]
[1746466056258,3.3312,1813.2,1813.1,2.47433021]
[1746466056962,4.43438,1813.2,1813.1,2.47433021]
[1746466057959,3.3312,1813.2,1813.1,2.47433021]
[1746466058660,2.503,1813.2,1813.1,4.99393021]
[1746466059252,3.60618,1813.2,1813.1,4.99393021]
[1746466059451,3.60618,1813.2,1813.1,1.37109021]
[1746466059654,3.60618,1813.2,1813.1,2.47433021]
[1746466060858,3.60618,1813.2,1813.1,1.10324]
[1746466062553,2.76938,1813.2,1813.1,1.10324]
[1746466062761,1.6662,1813.2,1813.1,1.10324]
[1746466063256,3.58838,1813.2,1813.1,1.10324]
[1746466063560,3.58838,1813.2,1813.1,2.47433021]
[1746466063859,2.4852,1813.2,1813.1,2.47433021]
[1746466064055,2.4852,1813.2,1813.1,7.32053021]
[1746466064654,1.6662,1813.2,1813.1,7.32053021]
[1746466065852,2.76938,1813.2,1813.1,7.32053021]
[1746466066055,1.6662,1813.2,1813.1,7.32053021]
[1746466075857,0.8095,1813.3,1813.2,1.10318]
[1746466076166,1.10307,1813.4,1813.3,1.10312]
[1746466076365,3.56447,1813.4,1813.3,2.47421021]
[1746466076567,3.56447,1813.4,1813.3,1.10312]
[1746466077464,3.56447,1813.4,1813.3,4.83512]
[1746466079165,3.56447,1813.4,1813.3,1.10312]
[1746466080454,4.35407,1813.4,1813.3,1.10312]
[1746466081067,1.10312,1813.3,1813.2,4.63713]
[1746466081267,2.71162,1813.3,1813.2,4.63713]
[1746466082366,1.6085,1813.3,1813.2,4.63713]
[1746466083074,1.6085,1813.3,1813.2,9.74022021]
[1746466083768,1.6085,1813.3,1813.2,11.40672021]
[1746466087773,2.71162,1813.3,1813.2,8.36913]
[1746466087969,1.6085,1813.3,1813.2,8.36913]
[1746466088469,1.6085,1813.3,1813.2,11.41792021]
[1746466089171,2.71162,1813.3,1813.2,9.74022021]
[1746466090364,2.71162,1813.3,1813.2,8.36913]
[1746466091170,2.71162,1813.3,1813.2,9.74022021]
[1746466092974,2.71162,1813.3,1813.2,5.10309021]
[1746466093275,2.71162,1813.3,1813.2,1.10318]
[1746466094066,1.6085,1813.3,1813.2,2.47427021]
[1746466095175,1.6085,1813.3,1813.2,6.20627021]
[1746466096075,1.6085,1813.3,1813.2,2.47427021]
[1746466096977,2.71162,1813.3,1813.2,2.47427021]
[1746466097174,2.71162,1813.3,1813.2,6.20627021]
[1746466097477,1.6085,1813.3,1813.2,6.20627021]
[1746466097680,1.6085,1813.3,1813.2,8.64627021]
[1746466101386,10.96808741,1813.9,1813.8,1.10282]
[1746466101680,10.96808741,1813.9,1813.8,5.68171021]
[1746466101869,10.96808741,1813.9,1813.8,51.48171021]
[1746466101870,9.70447741,1813.9,1813.8,51.48171021]
[1746466102073,9.70447741,1813.9,1813.8,54.69401021]
[1746466102278,12.24180741,1813.9,1813.8,54.69401021]
[1746466102479,16.61335374,1814.2,1813.9,1.10276]
[1746466102682,16.61335374,1814.2,1814.0,1.1027]
[1746466102885,16.61335374,1814.2,1814.0,9.21359021]
[1746466103083,18.49942555,1814.1,1814.0,56.61469021]
[1746466103388,10.09497401,1814.1,1814.0,56.61469021]
[1746466103588,8.61291401,1814.1,1814.0,56.61469021]
[1746466104388,16.61335374,1814.2,1814.1,1.10264]
[1746466104584,12.90371374,1814.2,1814.1,1.10264]
[1746466104789,20.30521013,1814.9,1814.8,1.10221]
[1746466104993,20.30521013,1814.9,1814.8,4.31001]
[1746466105190,24.03721013,1814.9,1814.8,4.31001]
[1746466105492,25.72501013,1814.9,1814.8,41.90221]
[1746466105991,5.4198,1814.9,1814.8,41.90221]
[1746466106193,5.4198,1814.9,1814.8,45.11001]
[1746466106688,11.52195,1814.9,1814.8,40.8]
[1746466106883,15.53375,1814.9,1814.8,40.8]
[1746466107183,1.10233,1814.6,1814.5,0.1]
[1746466107486,9.31013,1814.6,1814.5,0.1]
[1746466107987,12.84113,1814.6,1814.5,0.1]
[1746466108292,18.16833,1814.6,1814.5,0.1]
[1746466108879,1.10257,1814.2,1814.1,40.8]
[1746466109286,4.83457,1814.2,1814.1,40.8]
[1746466109583,11.42977,1814.2,1814.1,40.8]
[1746466109784,1.10276,1813.9,1813.8,4.63379]
[1746466110086,1.10276,1813.9,1813.8,1.10279]
[1746466110288,1.10276,1813.9,1813.8,41.90279]